bitfinex-derivatives/quotes_SOLF0:USTF0_20250411
["timestamp","ask_amount","ask_price","bid_price","bid_amount"]
[1744387472653,2.7e-05,119.6,119.59,8.3666]
[1744387473955,10.5216,119.65,119.63,8.3635]
[1744387474756,8.3633,119.64,119.62,8.3642]
[1744387475048,8.3633,119.64,119.62,8.4274883]
[1744387475259,8.41850084,119.64,119.62,8.4274883]
[1744387475449,0.05520084,119.64,119.62,8.4274883]
[1744387475753,0.05520084,119.64,119.63,8.3639]
[1744387476555,0.05520084,119.64,119.63,21.45062201]
[1744387476757,67.22496964,119.69,119.66,8.3615]
[1744387476758,69.33496964,119.69,119.66,8.3615]
[1744387476957,8.3607,119.68,119.66,8.3615]
[1744387477864,8.3611,119.67,119.65,8.3622]
[1744387478051,0.05937913,119.68,119.66,0.05972951]
[1744387479557,8.3611,119.67,119.66,0.05972951]
[1744387480654,13.14610114,119.68,119.6,2.1039]
[1744387480859,13.08672201,119.68,119.6,37.5639]
[1744387481060,13.08672201,119.66,119.6,35.46]
[1744387481261,13.08672201,119.64,119.6,35.46]
[1744387481459,2.2575,119.63,119.59,8.3664]
[1744387481661,8.4277039,119.62,119.6,0.05349501]
[1744387481859,0.0630039,119.62,119.6,0.05349501]
[1744387482062,0.0630039,119.62,119.61,8.3653]
[1744387484264,0.0630039,119.62,119.6,43.87909501]
[1744387484463,0.0630039,119.62,119.6,8.41909501]
[1744387484859,0.0630039,119.62,119.61,8.3653]
[1744387485062,0.0630039,119.62,119.6,0.05349501]
[1744387485263,8.4277039,119.62,119.6,0.05349501]
[1744387485561,0.0630039,119.62,119.6,8.41919501]
[1744387485764,8.4279039,119.62,119.6,8.41919501]
[1744387486467,8.4279039,119.62,119.6,0.05349501]
[1744387486659,8.3653,119.61,119.6,0.05349501]
[1744387487160,0.0630039,119.62,119.6,0.05349501]
[1744387487354,8.4280039,119.62,119.6,0.05349501]
[1744387487567,0.0630039,119.62,119.6,8.41929501]
[1744387487860,8.4276039,119.62,119.6,0.05349501]
[1744387488466,8.3653,119.61,119.6,0.05349501]
[1744387489369,8.4279039,119.62,119.6,0.05349501]
[1744387489761,0.0630039,119.62,119.6,0.05349501]
[1744387490366,0.0630039,119.62,119.61,8.3653]
[1744387500381,37.92114858,119.66,119.64,8.3629]
[1744387501284,8.3622,119.66,119.64,8.3629]
[1744387501481,8.41517176,119.66,119.64,8.42245767]
[1744387502579,0.05297176,119.66,119.65,8.3625]
[1744387502986,0.05297176,119.66,119.64,0.05955767]
[1744387503887,8.3625,119.65,119.64,0.05955767]
[1744387504087,0.05297176,119.66,119.64,0.05955767]
[1744387504488,8.41517176,119.66,119.64,0.05955767]
[1744387505189,8.41517176,119.66,119.64,8.42255767]
[1744387505985,0.05297176,119.66,119.64,8.42255767]
[1744387506990,8.41517176,119.66,119.64,8.42255767]
[1744387507288,0.05297176,119.66,119.64,0.05955767]
[1744387507490,8.41517176,119.66,119.64,0.05955767]
[1744387507692,29.06345539,119.66,119.64,0.05955767]
[1744387508692,8.3625,119.65,119.64,0.05955767]
[1744387508887,35.4,119.65,119.55,35.4]
[1744387509189,13.08672201,119.61,119.56,8.3684]
[1744387509389,8.3677,119.58,119.56,8.3684]
[1744387509895,8.42575797,119.58,119.56,8.42526851]
[1744387510089,0.05805797,119.58,119.56,8.42526851]
[1744387510395,0.05805797,119.58,119.57,8.3681]
[1744387511986,52.84652201,119.64,119.56,13.14359052]
[1744387511987,29.55894858,119.6,119.56,13.14359052]
[1744387512194,78.82386289,119.61,119.58,13.08672201]
[1744387512395,117.77800458,119.62,119.6,13.08672201]
[1744387512396,104.95630458,119.62,119.6,13.08672201]
[1744387512694,246.18094,119.64,119.6,13.08672201]
[1744387512895,18.33913829,119.64,119.63,13.08672201]
[1744387513094,5.40603829,119.64,119.63,56.87062201]
[1744387513387,3.829e-05,119.64,119.63,56.87062201]
[1744387514183,0.05558926,119.65,119.64,8.3632]
[1744387517091,4.4374,119.71,119.68,8.3602]
[1744387517797,4.4374,119.71,119.69,8.3597]
[1744387518298,4.50143681,119.71,119.69,8.42377044]
[1744387518498,4.50143681,119.71,119.7,8.359]
[1744387518894,4.50143681,119.71,119.69,0.06407044]
[1744387519600,8.359,119.7,119.69,0.06407044]
[1744387520800,8.359,119.7,119.66,43.7615]
[1744387521204,8.3604,119.68,119.62,13.08672201]
[1744387521404,13.08672201,119.69,119.62,13.08672201]
[1744387521602,8.3613,119.67,119.62,13.08672201]
[1744387521803,0.06315675,119.67,119.64,13.14772892]
[1744387522106,0.06315675,119.67,119.64,48.54772892]
[1744387522302,0.06315675,119.67,119.66,8.3618]
[1744387523104,5.675e-05,119.67,119.66,8.3618]
[1744387524401,5.675e-05,119.67,119.66,21.44852201]
[1744387525302,5.675e-05,119.67,119.64,35.46100691]
[1744387525303,5.675e-05,119.67,119.64,48.54772892]
[1744387525503,5.675e-05,119.67,119.64,35.46100691]
[1744387526095,5.675e-05,119.67,119.65,35.4]
[1744387532904,5.675e-05,119.67,119.66,3.71268164]
[1744387536911,5.675e-05,119.67,119.66,3.70669193]
[1744387537918,2.2647,119.72,119.66,24.62580966]
[1744387538217,2.2168,119.75,119.68,20.91911773]
[1744387538418,2.2168,119.75,119.69,39.043725]
[1744387538715,2.2168,119.75,119.69,35.34]
[1744387538911,2.1454,119.77,119.7,3.70291332]
[1744387539115,0.05302109,119.73,119.71,3.76098903]
[1744387539316,0.05302109,119.73,119.72,35.34]
[1744387541816,0.05302109,119.73,119.71,0.05807571]
[1744387542812,0.05302109,119.73,119.72,35.34]
[1744387543318,2.1454,119.77,119.72,59.95618627]
[1744387543517,2.1454,119.77,119.72,56.25911773]
[1744387544419,0.05971135,119.76,119.72,56.25911773]
[1744387546020,0.05971135,119.76,119.72,35.34]
[1744387547320,0.05971135,119.76,119.72,48.3965568]
[1744387549225,0.05971135,119.76,119.72,35.34]
[1744387552525,0.05971135,119.76,119.71,0.05807571]
[1744387553132,0.05971135,119.76,119.72,35.34]
[1744387556931,0.05971135,119.76,119.73,3.69285573]
[1744387557228,0.05971135,119.76,119.72,35.34]
[1744387560537,0.05971135,119.76,119.73,3.6990945]
[1744387560835,0.05971135,119.76,119.73,13.0565568]
[1744387561437,0.05971135,119.76,119.74,3.70163716]
[1744387561622,0.05971135,119.76,119.73,13.0565568]
[1744387561828,0.05971135,119.76,119.74,3.76353041]
[1744387562134,0.05971135,119.76,119.74,0.063434]
[1744387562329,0.05971135,119.76,119.75,35.28]
[1744387565435,0.05971135,119.76,119.75,52.03664275]
[1744387566136,0.05971135,119.76,119.75,38.98008595]
[1744387566439,0.05971135,119.76,119.75,35.28]
[1744387567033,0.05971135,119.76,119.74,0.063434]
[1744387567236,0.05971135,119.76,119.72,74.06937558]
[1744387567435,2.31451135,119.76,119.72,74.06937558]
[1744387567839,2.1707,119.75,119.72,74.06937558]
[1744387568340,2.1707,119.75,119.72,38.85159063]
[1744387568642,15.2272568,119.75,119.72,18.17169063]
[1744387568942,13.0565568,119.73,119.7,18.10947558]
[1744387569337,15.2272568,119.75,119.7,18.10947558]
[1744387569736,2.1707,119.75,119.7,18.10947558]
[1744387569937,2.2548,119.76,119.7,18.10947558]
[1744387570141,0.05783554,119.74,119.71,0.0581398]
[1744387571038,13.11439234,119.74,119.71,0.0581398]
[1744387571243,48.39439234,119.74,119.71,0.0581398]
[1744387571838,35.33783554,119.74,119.71,0.0581398]
[1744387572043,0.05783554,119.74,119.71,0.0581398]
[1744387573044,13.11439234,119.74,119.71,0.0581398]
[1744387573342,48.39439234,119.74,119.71,0.0581398]
[1744387575140,13.11439234,119.74,119.71,0.0581398]
[1744387575441,0.05783554,119.74,119.71,0.0581398]
[1744387576943,13.11439234,119.74,119.71,0.0581398]
[1744387580541,48.39439234,119.74,119.71,0.0581398]
[1744387580747,13.0565568,119.72,119.67,35.28]
[1744387580939,13.0565568,119.72,119.68,3.71423827]
[1744387581139,13.0565568,119.72,119.67,35.28]
[1744387581340,13.0565568,119.68,119.65,9.69734389]
[1744387582339,35.28,119.67,119.65,9.75421169]
[1744387582747,35.28,119.67,119.65,0.0568678]
[1744387583237,0.05951621,119.68,119.65,0.0568678]
[1744387585346,13.11607301,119.68,119.65,0.0568678]
[1744387590054,35.26,119.67,119.65,0.0568678]
[1744387590252,13.0565568,119.66,119.65,0.0568678]
[1744387593358,15.2699568,119.66,119.59,6.6317]
[1744387593552,13.0565568,119.64,119.59,6.6317]
[1744387593857,48.3165568,119.64,119.59,6.6317]
[1744387594254,0.05793854,119.63,119.6,0.04535525]
[1744387595760,13.0565568,119.62,119.6,0.04535525]
[1744387596255,35.26,119.61,119.6,0.04535525]
[1744387598952,0.05793854,119.63,119.6,0.04535525]
[1744387602857,48.3165568,119.62,119.6,0.04535525]
[1744387603058,48.3165568,119.62,119.55,6.4538]
[1744387603358,8.3671,119.59,119.56,8.3687]
[1744387603558,13.0565568,119.6,119.56,8.3687]
[1744387604161,8.3668,119.59,119.55,6.4538]
[1744387604359,0.05531905,119.59,119.55,6.4538]
[1744387604861,0.05531905,119.59,119.58,8.3674]
[1744387605257,13.0565568,119.64,119.57,35.26]
[1744387605457,21.4201568,119.64,119.61,8.3652]
[1744387605961,8.364,119.63,119.6,8.3657]
[1744387606160,8.364,119.63,119.57,35.26]
[1744387606357,0.06308224,119.61,119.59,0.05531905]
[1744387606863,0.06308224,119.61,119.59,8.42171905]
[1744387607763,0.06308224,119.61,119.6,8.366]
[1744387608061,0.06308224,119.61,119.59,0.05531905]
[1744387608361,0.06308224,119.61,119.6,8.366]
[1744387612657,0.01490623,119.61,119.6,8.366]
[1744387615171,35.26,119.65,119.64,8.3632]
[1744387615463,13.0565568,119.66,119.64,8.3632]
[1744387615664,35.28,119.68,119.6,39.5578]
[1744387615665,48.3365568,119.68,119.6,52.6143568]
[1744387615968,56.6973568,119.68,119.6,52.6143568]
[1744387616163,56.6973568,119.68,119.63,0.05666889]
[1744387616368,0.05891552,119.65,119.63,0.05666889]
[1744387616760,0.05891552,119.65,119.64,8.3627]
[1744387618468,8.41891552,119.65,119.64,8.3627]
[1744387618771,21.47547232,119.65,119.59,98.81013814]
[1744387618969,13.0565568,119.6,119.58,220.48663273]
[1744387619173,8.3667,119.59,119.58,220.48663273]
[1744387620572,21.47922514,119.6,119.58,220.48663273]
[1744387620873,13.11302514,119.6,119.58,220.48663273]
[1744387621074,8.3667,119.59,119.57,0.06044357]
[1744387621269,13.11302514,119.6,119.57,0.06044357]
[1744387621669,8.3674,119.58,119.57,0.06044357]
[1744387622173,13.11302514,119.6,119.57,0.06044357]
[1744387622366,8.3671,119.59,119.57,0.06044357]
[1744387623973,0.05646834,119.6,119.57,0.06044357]
[1744387624372,8.42246834,119.6,119.57,8.42824357]
[1744387624676,0.05646834,119.6,119.57,35.30044357]
[1744387624973,0.05646834,119.6,119.58,8.3669]
[1744387625177,0.05646834,119.6,119.57,35.30044357]
[1744387625474,37.3583,119.64,119.57,35.30044357]
[1744387625475,39.4837,119.67,119.58,16.60608742]
[1744387625671,35.24,119.67,119.6,13.0565568]
[1744387625873,13.0565568,119.68,119.61,38.78953062]
[1744387626070,8.3622,119.66,119.63,8.3635]
[1744387626277,79.95917524,119.7,119.61,35.24]
[1744387626574,8.41705757,119.67,119.64,8.41732784]
[1744387627677,0.05565757,119.67,119.65,8.3624]
[1744387627868,0.05565757,119.67,119.64,48.35098464]
[1744387628069,29.58921844,119.73,119.66,13.0565568]
[1744387628264,42.64577524,119.73,119.65,35.24]
[1744387628577,42.64577524,119.73,119.66,3.53982487]
[1744387628777,29.58921844,119.73,119.67,3.53893751]
[1744387628966,29.58921844,119.73,119.68,35.24]
[1744387629170,0.05452277,119.71,119.69,0.05732098]
[1744387629376,8.41302277,119.71,119.69,0.05732098]
[1744387629577,0.05452277,119.71,119.69,0.05732098]
[1744387629877,8.359,119.7,119.69,0.05732098]
[1744387630176,0.05452277,119.71,119.69,0.05732098]
[1744387632681,8.359,119.7,119.69,0.05732098]
[1744387634482,8.41332277,119.71,119.69,0.05732098]
[1744387635381,0.05452277,119.71,119.69,0.05732098]
[1744387637083,8.359,119.7,119.69,0.05732098]
[1744387637281,8.359,119.7,119.63,2.2206]
[1744387637282,20.91228607,119.7,119.63,2.2206]
[1744387637483,25.31028607,119.7,119.63,2.2206]
[1744387637785,35.22,119.69,119.62,37.5004]
[1744387637978,20.91228607,119.68,119.59,37.3866]
[1744387638181,20.91228607,119.66,119.56,35.22]
[1744387638377,20.91228607,119.64,119.57,3.53604205]
[1744387638581,20.91228607,119.62,119.56,35.22]
[1744387638881,56.13228607,119.62,119.56,35.22]
[1744387639380,56.13228607,119.62,119.55,15.0159]
[1744387639582,0.05923914,119.6,119.58,0.05592238]
[1744387639981,8.3671,119.59,119.58,0.05592238]
[1744387641779,43.58,119.59,119.5,35.22]
[1744387641979,20.91228607,119.57,119.5,35.22]
[1744387642180,37.5098,119.56,119.48,616.7447]
[1744387642379,39.7474,119.56,119.48,6.5107]
[1744387642783,0.06003169,119.53,119.48,6.5107]
[1744387643183,0.06003169,119.53,119.5,8.3726]
[1744387643789,0.06003169,119.53,119.51,8.3723]
[1744387644092,0.06003169,119.53,119.48,6.5107]
[1744387644390,0.06003169,119.53,119.5,8.3727]
[1744387644590,0.06003169,119.53,119.48,6.5107]
[1744387644791,0.06003169,119.53,119.52,8.3716]
[1744387644991,0.06003169,119.53,119.48,6.5107]
[1744387646285,0.06003169,119.53,119.51,8.372]
[1744387646684,0.06003169,119.53,119.5,8.3726]
[1744387647190,0.06003169,119.53,119.48,6.5107]
[1744387647892,0.06003169,119.53,119.5,8.3725]
[1744387648192,0.06003169,119.53,119.48,6.5107]
[1744387648394,0.06003169,119.53,119.52,8.3716]
[1744387648595,0.06003169,119.53,119.48,27.42298607]
[1744387648801,0.06003169,119.53,119.49,35.24]
[1744387648993,0.06003169,119.53,119.5,8.3729]
[1744387649198,0.06003169,119.53,119.49,35.24]
[1744387649589,0.06003169,119.53,119.45,35.2]
[1744387649590,56.17231776,119.53,119.45,35.2]
[1744387649793,8.3717,119.52,119.45,35.2]
[1744387650098,0.05338275,119.5,119.45,35.2]
[1744387650285,0.05338275,119.5,119.49,8.3734]
[1744387650998,0.05338275,119.5,119.48,8.3741]
[1744387651190,0.05338275,119.5,119.45,35.2]
[1744387651491,8.42688275,119.5,119.48,8.3744]
[1744387651697,0.05338275,119.5,119.48,8.3744]
[1744387653694,8.3739,119.49,119.46,8.3755]
[1744387653900,0.05338275,119.5,119.46,8.3755]
[1744387654095,0.05338275,119.5,119.45,35.2]
[1744387654295,8.3747,119.48,119.45,43.5761]
[1744387654695,8.3747,119.48,119.45,35.2]
[1744387655095,8.3747,119.48,119.45,43.5761]
[1744387655599,8.3741,119.49,119.45,43.5761]
[1744387655897,8.3741,119.49,119.46,8.3756]
[1744387656599,8.3741,119.49,119.45,43.5762]
[1744387657300,8.3741,119.49,119.46,8.3758]
[1744387658596,0.05338275,119.5,119.45,43.5762]
[1744387658801,0.05338275,119.5,119.45,35.2]
[1744387659601,8.3741,119.49,119.46,8.3755]
[1744387659797,8.3741,119.49,119.45,35.2]
[1744387660000,0.05338275,119.5,119.42,658.13228607]
[1744387660301,0.06066668,119.47,119.45,8.3762]
[1744387661303,0.06066668,119.47,119.46,8.3758]
[1744387667404,0.06066668,119.47,119.46,14.7524]
[1744387669506,0.00396046,119.47,119.46,14.7524]
[1744387677303,0.00396046,119.47,119.46,8.3758]
[1744387677699,0.00396046,119.47,119.45,8.42927406]
[1744387678102,0.00396046,119.47,119.45,0.05317406]
[1744387678406,8.37936046,119.47,119.45,8.42967406]
[1744387679212,8.37936046,119.47,119.45,0.05317406]
[1744387679910,8.37936046,119.47,119.45,8.42967406]
[1744387682407,8.3758,119.46,119.45,0.05317406]
[1744387682798,48.32586991,119.47,119.4,6.6432]
[1744387683111,48.32586991,119.47,119.41,3.5539873]
[1744387683112,8.3782,119.43,119.41,3.5539873]
[1744387683417,8.3786,119.42,119.39,43.5803]
[1744387683709,8.3786,119.42,119.4,3.55960872]
[1744387683911,0.06369661,119.42,119.41,3.56090222]
[1744387684698,0.06369661,119.42,119.41,3.56221553]
[1744387685410,0.06369661,119.42,119.38,9.77594668]
[1744387685605,0.06369661,119.42,119.39,3.56456024]
[1744387685796,8.3796,119.41,119.38,18.15694668]
[1744387686003,13.12190945,119.41,119.38,9.77594668]
[1744387686208,21.50260945,119.39,119.38,9.77594668]
[1744387686712,8.3814,119.38,119.37,106.56193587]
[1744387687403,8.3814,119.38,119.37,99.66093587]
[1744387687910,13.18052452,119.39,119.33,49.39818001]
[1744387687911,8.3825,119.37,119.33,49.39818001]
[1744387688112,8.3825,119.37,119.34,3.5619791]
[1744387688411,0.05347705,119.36,119.33,49.39818001]
[1744387688708,0.05347705,119.36,119.34,3.55876304]
[1744387688909,0.05347705,119.36,119.33,49.39818001]
[1744387689109,0.05347705,119.36,119.34,3.55784214]
[1744387689306,0.05347705,119.36,119.34,8.3837]
[1744387689510,0.05347705,119.36,119.33,41.01358001]
[1744387689911,0.05347705,119.36,119.34,8.3839]
[1744387690213,0.05347705,119.36,119.33,41.01358001]
[1744387690511,0.05347705,119.36,119.34,8.3842]
[1744387690710,0.05347705,119.36,119.33,41.01358001]
[1744387691409,0.05347705,119.36,119.34,8.3836]
[1744387691609,0.05347705,119.36,119.33,41.01358001]
[1744387692006,0.05347705,119.36,119.33,38.79228001]
[1744387692404,8.43657705,119.36,119.33,38.79228001]
[1744387692913,8.43657705,119.36,119.32,2.1224]
[1744387693108,8.3836,119.35,119.32,2.1224]
[1744387693306,0.05347705,119.36,119.32,10.5077]
[1744387693508,8.43667705,119.36,119.32,10.5077]
[1744387693703,0.05347705,119.36,119.32,2.1224]
[1744387694510,0.05347705,119.36,119.34,8.3836]
[1744387695309,0.05347705,119.36,119.32,2.1224]
[1744387695610,0.05347705,119.36,119.33,13.12190945]
[1744387695911,0.05347705,119.36,119.35,8.3835]
[1744387698118,2.1513,119.42,119.38,8.3813]
[1744387698316,2.1513,119.42,119.35,15.30580945]
[1744387698612,35.22,119.43,119.37,13.12190945]
[1744387698802,35.22,119.43,119.38,2.2567]
[1744387699205,8.44209151,119.42,119.39,8.43428908]
[1744387701409,0.06349151,119.42,119.39,0.05398908]
[1744387701614,13.18540096,119.42,119.39,0.05398908]
[1744387702014,8.38,119.4,119.39,0.05398908]
[1744387704915,15.27470096,119.42,119.39,0.05398908]
[1744387705122,8.3796,119.41,119.39,0.05398908]
[1744387705311,0.06349151,119.42,119.39,0.05398908]
[1744387705613,8.38,119.4,119.39,0.05398908]
[1744387721434,16.79239893,119.4,119.39,0.05398908]
[1744387721636,43.56,119.4,119.39,8.908e-05]
[1744387721830,51.97239893,119.4,119.39,8.908e-05]
[1744387722131,43.59239893,119.4,119.33,2.2355]
[1744387722337,8.41239893,119.36,119.33,2.2355]
[1744387722737,35.18,119.4,119.33,10.64789893]
[1744387722932,8.41239893,119.38,119.33,10.64789893]
[1744387723128,8.3829,119.36,119.34,3.55820694]
[1744387723331,8.3829,119.36,119.33,19.03239893]
[1744387723527,8.3829,119.36,119.34,3.55825334]
[1744387723730,8.3829,119.36,119.33,10.64789893]
[1744387723927,8.3829,119.36,119.33,19.03249893]
[1744387724139,8.3829,119.36,119.33,10.6201]
[1744387724633,8.3829,119.36,119.34,3.5606587]
[1744387724834,8.3836,119.35,119.33,10.6201]
[1744387725029,8.3836,119.35,119.34,3.560634]
[1744387725233,8.3836,119.35,119.29,8.41239893]
[1744387725234,8.41239893,119.35,119.29,8.41239893]
[1744387725439,8.3854,119.33,119.3,3.56229283]
[1744387725642,8.44075987,119.33,119.31,3.56229283]
[1744387725839,8.44075987,119.33,119.3,8.3867]
[1744387726037,8.44075987,119.33,119.31,3.56215302]
[1744387726334,8.44075987,119.33,119.3,8.3867]
[1744387726536,8.44075987,119.33,119.31,3.56092218]
[1744387726843,8.44075987,119.33,119.3,8.3867]
[1744387727139,8.44075987,119.33,119.31,3.56361438]
[1744387727339,8.44075987,119.33,119.3,8.3867]
[1744387727639,0.05535987,119.33,119.31,3.56491263]
[1744387727937,0.05535987,119.33,119.28,35.18]
[1744387728137,0.05535987,119.33,119.3,8.3866]
[1744387728331,0.05535987,119.33,119.31,3.56438596]
[1744387728530,0.05535987,119.33,119.32,3.56488772]
[1744387728729,0.05535987,119.33,119.28,48.33636642]
[1744387728931,0.05535987,119.33,119.3,13.15636642]
[1744387729133,48.33636642,119.37,119.31,38.74510784]
[1744387729134,35.18,119.37,119.31,38.74510784]
[1744387729334,8.3829,119.36,119.33,8.3845]
[1744387729535,48.33636642,119.37,119.33,8.3845]
[1744387729743,48.33636642,119.37,119.32,2.1772]
[1744387729942,8.3838,119.35,119.33,3.5644919]
[1744387730143,8.43693806,119.35,119.33,0.05838]
[1744387730439,0.05313806,119.35,119.34,3.5655904]
[1744387730833,13.15636642,119.39,119.34,3.5655904]
[1744387731037,8.3813,119.39,119.35,3.5655904]
[1744387731238,8.3813,119.39,119.36,3.5655904]
[1744387731443,8.3813,119.39,119.36,8.3825]
[1744387731647,603.42,119.45,119.37,3.56282102]
[1744387731648,48.33636642,119.43,119.37,3.56282102]
[1744387731940,0.05440101,119.41,119.39,0.05389076]
[1744387732743,8.43380101,119.41,119.39,0.05389076]
[1744387733048,8.43380101,119.41,119.39,8.43459076]
[1744387733346,0.05440101,119.41,119.39,8.43459076]
[1744387734449,8.43400101,119.41,119.39,0.05389076]
[1744387735248,8.43400101,119.41,119.39,8.43459076]
[1744387735249,0.05440101,119.41,119.39,8.43459076]
[1744387735949,0.05440101,119.41,119.4,8.38]
[1744387736647,35.18,119.46,119.41,8.3791]
[1744387736949,48.33636642,119.46,119.38,15.26726642]
[1744387737141,48.33636642,119.46,119.39,3.55790575]
[1744387737343,48.33636642,119.46,119.4,3.55790575]
[1744387737540,13.15636642,119.44,119.38,2.1109]
[1744387737848,0.06010691,119.42,119.4,0.05557042]
[1744387738348,8.3793,119.41,119.4,0.05557042]
[1744387738552,0.06010691,119.42,119.4,0.05557042]
[1744387740048,8.43900691,119.42,119.4,0.05557042]
[1744387740857,0.06010691,119.42,119.4,0.05557042]
[1744387741758,8.43900691,119.42,119.4,0.05557042]
[1744387742151,0.06010691,119.42,119.4,0.05557042]
[1744387742350,0.06010691,119.42,119.4,8.43547042]
[1744387743159,0.06010691,119.42,119.41,8.3793]
[1744387743652,0.06010691,119.42,119.41,11.93072515]
[1744387743859,0.06010691,119.42,119.41,3.55142515]
[1744387744351,0.06010691,119.42,119.4,0.05557042]
[1744387744551,8.43910691,119.42,119.4,0.05557042]
[1744387744957,0.06010691,119.42,119.4,0.05557042]
[1744387745657,8.43870691,119.42,119.4,8.43557042]
[1744387746056,0.06010691,119.42,119.4,0.05557042]
[1744387746255,8.43910691,119.42,119.4,0.05557042]
[1744387747562,8.3793,119.41,119.4,0.05557042]
[1744387749264,16.78829767,119.41,119.4,0.05557042]
[1744387749564,8.3813,119.39,119.35,8.40899767]
[1744387749754,8.40899767,119.39,119.36,3.55514492]
[1744387749955,8.40899767,119.39,119.34,43.52899767]
[1744387750155,8.3809,119.39,119.36,8.3825]
[1744387750359,8.40899767,119.4,119.36,8.3825]
[1744387750563,8.3818,119.38,119.34,43.52899767]
[1744387750763,8.3818,119.38,119.37,0.06131276]
[1744387752962,8.43934657,119.39,119.37,8.44341276]
[1744387753159,0.05834657,119.39,119.37,8.44341276]
[1744387753565,8.43934657,119.39,119.37,8.44341276]
[1744387754668,0.05834657,119.39,119.37,8.44341276]
[1744387754867,8.46734424,119.39,119.37,0.06131276]
[1744387755265,0.05834657,119.39,119.37,0.06131276]
[1744387755466,43.52899767,119.38,119.28,35.12]
[1744387755761,8.40899767,119.34,119.29,3.55824198]
[1744387755967,16.79449767,119.33,119.3,11.94494198]
[1744387756168,8.40899767,119.33,119.31,3.55824198]
[1744387756367,8.387,119.31,119.28,39.4004]
[1744387756567,8.40899767,119.3,119.29,3.56076781]
[1744387756966,8.40899767,119.3,119.28,0.04903589]
[1744387757167,16.79669767,119.3,119.28,0.04903589]
[1744387757361,8.40899767,119.3,119.28,0.04903589]
[1744387757572,0.05491293,119.31,119.28,0.04903589]
[1744387757763,8.3875,119.3,119.28,0.04903589]
[1744387758170,0.05491293,119.31,119.28,0.04903589]
[1744387758469,8.387,119.3,119.28,0.04903589]
[1744387758668,0.05491293,119.31,119.28,0.04903589]
[1744387759069,8.3877,119.29,119.28,0.04903589]
[1744387759274,0.05491293,119.31,119.28,0.04903589]
[1744387760273,13.219525,119.31,119.28,0.04903589]
[1744387760867,8.3877,119.29,119.28,0.04903589]
[1744387761171,13.16461207,119.29,119.24,4.3687]
[1744387761561,48.30461207,119.29,119.22,35.14]
[1744387761870,48.30461207,119.29,119.23,3.55660428]
[1744387762172,8.3903,119.26,119.22,43.5323]
[1744387762871,8.391,119.25,119.22,35.14]
[1744387763168,8.391,119.25,119.21,2.1391]
[1744387763570,0.06377595,119.24,119.22,8.3925]
[1744387764565,8.3901,119.26,119.23,8.392]
[1744387764971,48.30461207,119.29,119.22,35.16]
[1744387765172,48.30461207,119.29,119.24,8.3912]
[1744387765569,48.30461207,119.29,119.22,48.32461207]
[1744387765770,8.3895,119.27,119.25,0.0561833]
[1744387767778,8.3899,119.26,119.25,0.0561833]
[1744387769268,43.5497,119.27,119.25,0.0561833]
[1744387770376,35.16,119.27,119.25,0.0561833]
[1744387770579,8.44806668,119.28,119.25,0.0561833]
[1744387771379,8.3892,119.27,119.25,0.0561833]
[1744387771766,8.44816668,119.28,119.25,0.0561833]
[1744387771973,0.05936668,119.28,119.25,0.0561833]
[1744387772777,0.05936668,119.28,119.27,8.3892]
[1744387774085,17.42851207,119.35,119.26,15.34211207]
[1744387774284,15.26351207,119.35,119.28,13.16461207]
[1744387774473,2.0989,119.35,119.28,13.16461207]
[1744387774678,35.12,119.36,119.28,48.28461207]
[1744387775082,8.3846,119.34,119.31,8.386]
[1744387775284,0.05746256,119.33,119.31,8.44908671]
[1744387775985,0.05746256,119.33,119.32,8.3856]
[1744387776682,0.05746256,119.33,119.31,0.06308671]
[1744387776879,13.22207463,119.33,119.31,0.06308671]
[1744387777081,21.60737463,119.33,119.31,0.06308671]
[1744387777686,13.22207463,119.33,119.31,0.06308671]
[1744387777886,0.05746256,119.33,119.31,0.06308671]
[1744387779084,8.44286256,119.33,119.31,0.06308671]
[1744387779286,0.05746256,119.33,119.31,0.06308671]
[1744387779587,8.3856,119.32,119.31,0.06308671]
[1744387779879,0.05746256,119.33,119.31,0.06308671]
[1744387780087,8.44276256,119.33,119.31,0.06308671]
[1744387780283,0.05746256,119.33,119.31,0.06308671]
[1744387781382,8.3856,119.32,119.31,0.06308671]
[1744387782087,8.3881,119.29,119.26,2.1775]
[1744387782677,8.3888,119.28,119.26,2.1775]
[1744387782879,8.3888,119.28,119.25,37.3325]
[1744387783076,35.1,119.3,119.25,37.3325]
[1744387783297,0.06255106,119.28,119.25,0.06005592]
[1744387784089,8.3895,119.27,119.25,0.06005592]
[1744387785290,8.3892,119.27,119.25,0.06005592]